Cogmind - Beta 17 @@@ ROGUE MODE // 2026.06.28 @ 18:40:03 Player: RecursiveCharlatan Result: Destroyed by G-47 Trooper with Particle Gun Performance ------------- Evolutions (0) 0 Regions Visited (1) 200 Robots Destroyed (17) 85 Value Destroyed (266) 266 Prototype IDs (0) 0 Alien Tech Used (0) 0 Bonus (0) 0 TOTAL SCORE: 551 Bonus ------- None Cogmind --------- Core Integrity 0/250 Matter 244/300 Energy 100/100 System Corruption 1% Temperature Cool (9) Movement Treading (160) Location -10/Materials Parts ------- > --- POWER (1) -------- (None) > --- PROPULSION (2) --- Light Treads Light Treads > --- UTILITY (2) ------ Large Storage Unit > --- WEAPON (2) ------- Light Assault Rifle > --- INVENTORY (15) --- Ion Engine Light Treads Aluminum Leg Aluminum Leg Aluminum Leg Mining Laser Peak State ------------ > --- POWER ------------ Light Ion Engine > --- PROPULSION ------- Aluminum Leg Aluminum Leg > --- UTILITY ---------- Small Storage Unit Seismic Detector > --- WEAPON ----------- Assault Rifle Assault Rifle > --- INVENTORY -------- Ion Engine Light Treads Light Treads Medium Laser [Rating: 7] Favorites ----------- Power Light Ion Engine Engine Light Ion Engine Propulsion Aluminum Leg Treads Light Treads Leg Aluminum Leg Utility Seismic Detector Device Seismic Detector Storage Small Storage Unit Weapon Assault Rifle Energy Gun Medium Laser Ballistic Gun Assault Rifle Build | -11 -10 ------- Run | Yrd Mat Slots Evolved . | . . Power . | . . Propulsion . | . . Utility . | . . Weapon . | . . Parts Attached 14 | 8 6 Power 1 | 1 . Engine 1 | 1 . Core . | . . Reactor . | . . Propulsion 6 | 2 4 Treads 2 | . 2 Leg 4 | 2 2 Wheel . | . . Hover . | . . Flight . | . . Utility 3 | 2 1 Device 1 | 1 . Storage 2 | 1 1 Processor . | . . Hackware . | . . Protection . | . . Artifact . | . . Weapon 4 | 3 1 Energy Gun 1 | 1 . Energy Cannon . | . . Ballistic Gun 3 | 2 1 Ballistic Cannon . | . . Launcher . | . . Special Weapon . | . . Impact Weapon . | . . Slashing Weapon . | . . Piercing Weapon . | . . Special Melee Weapon . | . . Unidentified Prototypes . | . . Parts Lost 7 | . 7 Power 1 | . 1 Propulsion 2 | . 2 Utility 1 | . 1 Weapon 3 | . 3 Highest Loss Streak 3 | . 3 To Critical Strikes . | . . Average Backups 5 | 2 6 Power . | . 1 Propulsion 3 | 1 3 Utility . | . . Weapon 1 | . 1 Tool/Special . | . . Unused Backups 4 | . 4 Power 1 | . 1 Propulsion 2 | . 2 Utility . | . . Weapon 1 | . 1 Tool/Special . | . . Average Slot Usage (%) 90 | . 90 Engine 8 | . 8 Treads 1 | . 1 Leg 25 | . 25 Device 13 | . 13 Storage 14 | . 14 Ballistic Gun 25 | . 25 Peak Build Rating 7 | 7 7 Average Rating 6 | 5 6 On Entrance 3 | . 7 Avg Prop Armor Cover (%) . | . . Naked Turns . | . . Heaviest Build 25 | 13 25 Greatest Support 40 | 20 40 Greatest Overweight (x) 3 | 3 2 Average Overweight (x) . | . . Largest Inventory Capacity 15 | 8 15 Average Capacity 10 | 7 10 Most Carried 9 | 5 9 Average Carried 5 | 2 6 Final Capacity 15 | 8 15 Final Carried 6 | 5 6 Class Distribution -------------------- 100% | Mutant Dominant Class ---------------- Mutant | -10/Materials Resources | -11 -10 ----------- Run | Yrd Mat Matter Collected 460 | 224 236 Remotely . | . . Salvage Created 477 | 170 307 Parts 38 | 13 25 Haulers Intercepted 1 | . 1 Recyclers Shooed 1 | 1 . Parts Field Recycled . | . . Retrieved Matter . | . . Parts Self-Destructed . | . . Prevented . | . . Parts Restored . | . . Kills | -11 -10 ------- Run | Yrd Mat Combat Hostiles Destroyed 11 | . 11 Melee 1 | . 1 Guns 10 | . 10 Classes Destroyed 5 | 2 3 Tunneler 4 | 4 . Hauler 1 | . 1 Recycler 1 | 1 . Swarmer 6 | . 6 Grunt 5 | . 5 Best Kill Streak 5 | 5 3 Combat Bots Only 3 | . 3 Max Kills in Single Turn 2 | 1 2 Gunslinging 1 | . 1 Exploded . | . . Melee 1 | . 1 Uniques/NPCs Destroyed . | . . Combat | -11 -10 -------- Run | Yrd Mat Hostile Shots Fired 100 | . 100 Missed 14 | . 14 Hits 86 | . 86 Projectile 86 | . 86 Critical Strikes 1 | . 1 Damage Taken 1019 | . 1019 Core 261 | . 261 Absorbed by Shields . | . . Core Remaining (%) 100 | 100 . Volleys Fired 51 | 9 42 Largest 2 | 2 2 Hottest 70 | 40 70 Shots Fired 89 | 18 71 Gun 89 | 18 71 Cannon . | . . Launcher . | . . Special . | . . Kinetic 77 | 18 59 Thermal 12 | . 12 Explosive . | . . Electromagnetic . | . . Robot Hit Streak 12 | 6 12 Robot Miss Streak 3 | 3 3 Penetration Max . | . . Secondary Targets 1 | . 1 Max Gunslinging Chain 1 | . 1 Shots Hit Robots 61 | 10 51 Core Hits 24 | 6 18 Critical Kills 1 | . 1 Critical Parts Destroyed . | . . Critical Strikes 1 | . 1 Destroy 1 | . 1 Melee Attacks . | . . Impact . | . . Slashing . | . . Piercing . | . . Sneak Attacks . | . . Combat Hostiles . | . . Follow-up Attacks . | . . Damage Inflicted 723 | 135 588 Guns 720 | 135 585 Cannons . | . . Explosions . | . . Melee . | . . Ramming 3 | . 3 Kinetic 656 | 135 521 Thermal 64 | . 64 Explosive . | . . Electromagnetic . | . . Impact . | . . Slashing . | . . Piercing . | . . Highest Corruption 1 | . 1 Average Corruption 1 | . 1 Corruption Purged . | . . Corruption Blocked . | . . Effects 1 | . 1 Heat Flow Errors 1 | . 1 Overload Shots . | . . Overflow Damage . | . . Projectiles . | . . Explosions . | . . Melee . | . . Knockbacks . | . . Impact . | . . Kinetic . | . . Secondary . | . . Self-Inflicted Damage . | . . Shots . | . . Rammed . | . . Targets Rammed 1 | . 1 Kicked . | . . Crushed 1 | . 1 Highest Temperature 181 | . 181 Average Temperature 73 | . 73 Received Heat Transfer 405 | . 405 Siege Activations . | . . Martial Activations . | . . Shielding Activations . | . . Robots Disrupted . | . . Combat Hostiles . | . . Robots Corrupted . | . . Combat Hostiles . | . . Parts Fried . | . . Impact Corruptions . | . . Robots Melted . | . . Combat Hostiles . | . . Parts Melted . | . . Heat Transferred 185 | . 185 Parts Sabotaged . | . . Parts Stolen . | . . Parts Stripped . | . . Power Chain Reactions . | . . Alert | -11 -10 ------- Run | Yrd Mat Maximum Alert Level 1 | . 1 Low Security (%) 98 | 100 97 Level 1 1 | . 2 Level 2 . | . . Level 3 . | . . Level 4 . | . . Level 5 . | . . High Security . | . . Max Security . | . . Peak Influence 200 | 10 200 Initial 3 | . 3 Average 38 | 1 44 Influence Increases 421 | 25 396 Destroy 0b10 Robot/C 220 | . 220 Destroy 0b10 Robot/NC 30 | 25 5 Destroy Leader 42 | . 42 Successful Hack 9 | . 9 Select Force Hacks 60 | . 60 Lose Combat Pursuer 60 | . 60 Influence Decreases 229 | 20 209 Entered New Map 2 | . 2 Time Decay 157 | 20 137 Lost Part 70 | . 70 Squads Dispatched 4 | . 4 Investigation 3 | . 3 Extermination . | . . Reinforcement 1 | . 1 Assault . | . . Garrison . | . . Intercept . | . . Searches Triggered . | . . Construction Impeded . | . . Haulers Reinforced . | . . Active Scanning Responses . | . . Cargo Convoy Interrupts . | . . Stealth | -11 -10 --------- Run | Yrd Mat Distress Signals 1 | . 1 Communications Jammed . | . . Distress Signals . | . . Times Spotted 20 | . 20 Peak Tracking Total 8 | . 8 Tactical Retreats 3 | . 3 Traps | -11 -10 ------- Run | Yrd Mat Traps Triggered 3 | . 3 Indirectly . | . . Trap Hack Attempts . | . . Triggered . | . . Disarmed . | . . Reprogrammed . | . . Reused . | . . Traps Extracted . | . . Installed . | . . Triggered . | . . Machines | -11 -10 ---------- Run | Yrd Mat Machines Disabled . | . . Max in Single Turn . | . . Machines Repaired . | . . Machines Dismantled . | . . Machines Sabotaged . | . . Overloaded Fab Kills . | . . Hacking | -11 -10 --------- Run | Yrd Mat Machines Accessed 3 | . 3 Terminals 1 | . 1 Fabricators . | . . Repair Stations . | . . Recycling Units 2 | . 2 Scanalyzers . | . . Garrison Access . | . . Total Hacks 4 | . 4 Successful 4 | . 4 Failed . | . . Catastrophic . | . . Database Lockouts . | . . Manual 4 | . 4 Terminals 2 | . 2 Fabricators . | . . Repair Stations . | . . Recycling Units 2 | . 2 Scanalyzers . | . . Garrison Access . | . . Terminal Hacks . | . . Fabricator Hacks . | . . Repair Station Hacks . | . . Recycling Unit Hacks . | . . Scanalyzer . | . . Garrison Access Hacks . | . . Unauthorized Hacks 4 | . 4 Terminals 2 | . 2 Botnet 1 | . 1 Skim 1 | . 1 Fabricators . | . . Repair Stations . | . . Recycling Units 2 | . 2 Tunnel 2 | . 2 Scanalyzers . | . . Garrison Access . | . . Data Cores Recovered . | . . Used . | . . Hacking Detections 1 | . 1 Full Trace Events . | . . Feedback Events . | . . Feedback Blocked . | . . Robot Schematics Acquired . | . . Robots Built . | . . Authchips . | . . Time . | . . Total Robot Build Rating . | . . Part Schematics Acquired . | . . Parts Built . | . . Authchips . | . . Time . | . . Total Part Build Rating . | . . Part Studies Acquired . | . . Parts Repaired . | . . Time . | . . Parts Recycled . | . . Recycled Matter . | . . Retrieved Matter . | . . Retrieved Components . | . . Parts Scanalyzed . | . . Part Schematics Acquired . | . . Parts Damaged . | . . Bothacking | -11 -10 ------------ Run | Yrd Mat Used RIF Installer . | . . Robots Hacked . | . . Non-combat . | . . Combat . | . . Robot Hacks Applied . | . . Relay Couplers Released . | . . Fabnet Peak Effective % . | . . Robots Rewired . | . . Allies Hacked . | . . Hacks Repelled . | . . Allies | -11 -10 -------- Run | Yrd Mat Total Allies . | . . Largest Group . | . . Highest-Rated Group . | . . Highest-Rated Ally . | . . Total Orders . | . . Ally Attacks . | . . Total Damage . | . . Kills . | . . Allies Corrupted . | . . Allies Melted . | . . Intel | -11 -10 ------- Run | Yrd Mat Active Infowar (turns) 610 | 12 598 Seismic 610 | 12 598 Robot Analysis Total . | . . Derelict Logs Recovered . | . . Drone Launches . | . . Drone Recoveries . | . . Exploration | -11 -10 ------------- Run | Yrd Mat Turns Passed 713 | 97 616 Spaces Moved 343 | 46 297 Core 7 | 7 . Treads 2 | . 2 Legs 334 | 39 295 Wheels . | . . Hover . | . . Flight . | . . Fastest Speed 50 | 50 120 Average Speed 136 | 118 139 Slowest Speed 260 | 200 260 Overloaded Moves . | . . Propulsion Burnouts . | . . Robots Hopped . | . . Potential Cave-ins . | . . Cave-ins Triggered . | . . Exploration Rate (%) 32 | 3 61 Regions Visited 1 Branch Regions . Pre-discovered Areas 2 | . 2 Known Exits Taken . | . . Unknown Exits Taken 1 | 1 . Scrap Searched . | . . Spaces Dug . | . . Terrain Destroyed . | . . Melee . | . . Projectile . | . . AOE . | . . Terrain Rammed . | . . Walls Destroyed . | . . Machines Disabled . | . . Actions | -11 -10 --------- Run | Yrd Mat Total 495 | 67 428 Wait 78 | . 78 Move 342 | 45 297 Hop . | . . Pick Up 6 | 4 2 Fast Attach 9 | 8 1 Attach 3 | . 3 Detach 1 | 1 . Swap 3 | . 3 Drop 1 | . 1 Fire 51 | 9 42 Melee . | . . Ram . | . . Kick . | . . Crush 1 | . 1 Escape Stasis . | . . Rewire . | . . Trap . | . . Miscellaneous . | . . Route ------- -11/Scrapyard -10/Materials (discovered 2 exits: [*Mat x2]) History --------- Turn | Location | Event 27 | -11/Scrapyard | Discovered new exit (range 15) 98 | -11/Scrapyard | Entered Materials 314 | -10/Materials | Discovered new exit (range 11) 316 | -10/Materials | Build established: Mutant 598 | -10/Materials | Derelicts attacked the area 637 | -10/Materials | Discovered new exit (range 11) 660 | -10/Materials | Core integrity fell below 50% 676 | -10/Materials | Lost 3 parts (1n2w) 692 | -10/Materials | Core integrity fell below 20% 714 | -10/Materials | Destroyed by G-47 Trooper with Particle Gun Last Messages --------------- Assault Rifle. 00632_ G-34 Mercenary suffers critical hit (Destroy). 00632_ G-34 Mercenary destroyed. 00632_ Switching to secondary target: S-10 Pest. 00632_ S-10 Pest destroyed. 00637_ EXIT=FOUND 00640_ Assault Rifle destroyed. 00645_ Aluminum Leg destroyed. 00662_ S-10 Pest destroyed. 00666_ Acquired 15 matter. 00671_ Acquired Lgt. Assault Rifle. 00681_ System corrupted: Heat flow error (+146). 00681_ Aluminum Leg destroyed. 00681_ S-10 Pest destroyed. 00693_ Med. Laser destroyed. 00696_ Seismic Detector destroyed. 00696_ Crushed G-34 Mercenary. 00696_ G-34 Mercenary destroyed. 00697_ Acquired 34 matter. Map ----- +----------------------------------------------------+ | ?????????????????????# # ## #?# | | ????????????########?# ####+###### #?# | | ????????????# """ #?# #?????????# #?## | | ????????????# "Y" ### #?????????# #??# | | ????????????# + #?????????# #??# | | ????????????# #*% =##???#????# #??# | | ????????????# # "### ##### ??# | | ????????????# = [ [ ??# | | ????????????####### ??# | | ??????????????????## ??# | | ??????????????###### +## ###### #?# | | ??????????????# """ #? #????######??# | | ??????????????# "Y" #? #????????????+ | | ????????????### #? #??????????? # | | ???????????# + #?? #???????????]# | | ???????????#### #?? #??????????]?# | | ??????????????# """ #?? #??????????]?# | | ??????????????# """ #??? #????????? ??# | | ??????????????# """ #??? #????????????# | | ??????????????# =%% #?? #????????????# | | ??????####+########+##### #####??????????? | | ??????# ?????????? | | ??????# < ?????????? | | ??????# ?????????? | | ??????### ####### ##### #####??????????? | | ????????# ????????#@#????? #??????????????? | | ????????????#######g###???? #??????????????? | | ????????????# =[ * #????????????????????? | | ????????????# """ #????????????????????? | | ????????????# """"" + ?????????????????? | | ????????????# """"" ### #??????????????? | | ????????????# """""g#?????#??????????????? | | ????????????# """ #????????????????????? | | ??????????? + #????????????????????? | | ??????????? # ? ?? #????????????????????? | | ?????????? ##?????####????????????????????? | | ????????? ????????????????????????????????? | | ???????? ?????????????????????????????????? | | ??????? ??????????????????????????????????? | | ???????? ??????????????????????????????????? | | ???????????????????????????????????????????? | | ???????????????????????????????????????????? | | ???????????????????????????????????????????? | | ???????????????????????????????????????????? | | ???????????????????????????????????????????? | | ???????????????????????????????????????????? | | ???????????????????????????????????????????? | | ???????????????????????????????????????????? | | ???????????????????????????????????????????? | | ???????????????????????????????????????????? | +----------------------------------------------------+ Best States ------------- Heat Dissipation 25 Energy Generation 10 Energy Capacity 125 Matter Stores 254 Matter Capacity 300 Sight Range 16 Terrain Scan Density 10 Evasion (%) 55 Recoil Reduction 2 Item Schematics ----------------- None Robot Schematics ------------------ None Fabricated ------------ Nothing Repaired ---------- Nothing Studied --------- None Alien Tech Used ----------------- None Achievements -------------- None Challenges ------------ None Game ------ Seed ShieldAntigravSegregator Manual? 0 Play Time 00:06:24 Cumulative 157.9 hours Start 2026.06.28 @ 18:36:14 End 2026.06.28 @ 18:40:03 Sessions 1 Manual Loads 0 Difficulty Rogue Special Mode None Game No. 287 Rogue 287 Adventurer 0 Explorer 0 Win Type - Total 3 Types 2/0/0/1/0/0/0/0/0/0 Lore% 59 Gallery% 58 Achievement% 45 Wizard Run 0 Options --------- Layout 2 ASCII 0 Keyboard 1 Movement Numpad Keybinds 0 Fullscreen 1 Font 24/Smallcaps Map View 50x44 Zoom Use 0% Tactical HUD 1 Map Filters NONE Filters NONE Steam X RUN: 189cbe39-6f19-4909-9194-07deb67075e1